bitfinex-derivatives/quotes_BNBF0:USTF0_20241225
["timestamp","ask_amount","ask_price","bid_price","bid_amount"]
[1735093284299,0.26319831,699.23,697.81,0.28661096]
[1735093284496,0.26319831,699.22,697.81,0.28661096]
[1735093284696,0.26319831,699.21,697.81,0.28661096]
[1735093285000,1.07026258,699.35,697.81,0.28661096]
[1735093285001,0.2632022,699.2,697.81,0.28661096]
[1735093285201,0.2632022,699.19,697.81,0.28661096]
[1735093285404,0.2632022,699.18,697.81,0.28661096]
[1735093285605,0.2632022,699.17,697.81,0.28661096]
[1735093285798,0.2632022,699.16,697.81,0.28661096]
[1735093285998,1.07026258,699.37,697.81,0.28661096]
[1735093285999,0.2632022,699.15,697.81,0.28661096]
[1735093286197,0.2632022,699.14,697.81,0.28661096]
[1735093286402,0.2632022,699.13,697.81,0.28661096]
[1735093286701,1.35622606,699.39,697.81,0.28661096]
[1735093286702,0.2632022,699.12,697.81,0.28661096]
[1735093286901,0.2632022,699.11,697.81,0.28661096]
[1735093287099,0.2632022,699.1,697.81,0.28661096]
[1735093287303,0.2632022,699.09,697.81,0.28661096]
[1735093287502,0.2632022,699.08,697.81,0.28661096]
[1735093287802,0.26320875,699.07,697.81,0.28661096]
[1735093288003,0.26320875,699.06,697.81,0.28661096]
[1735093288201,0.26320875,699.05,697.81,0.28661096]
[1735093288403,0.26320875,699.04,697.81,0.28661096]
[1735093288604,0.26320875,699.03,697.81,0.28661096]
[1735093288804,0.26320875,699.02,697.81,0.28661096]
[1735093289004,1.35622606,699.39,697.81,0.28661096]
[1735093289198,0.54917585,699.38,697.81,0.28661096]
[1735093289401,0.26320828,699.37,697.81,0.28661096]
[1735093290506,0.26320462,699.36,697.81,0.28661096]
[1735093290806,0.26320462,699.35,697.81,0.28661096]
[1735093291001,0.26320462,699.34,697.81,0.28661096]
[1735093291202,0.26320462,699.33,697.81,0.28661096]
[1735093291408,0.26320462,699.32,697.81,0.28661096]
[1735093291609,0.28596757,699.38,697.81,0.28661096]
[1735093291610,0.26320462,699.31,697.81,0.28661096]
[1735093291808,0.26320462,699.3,697.81,0.28661096]
[1735093292009,0.26321103,699.29,697.81,0.28661096]
[1735093292209,0.26321103,699.28,697.81,0.28661096]
[1735093292406,0.26321103,699.27,697.81,0.28661096]
[1735093292610,0.26321103,699.26,697.81,0.28661096]
[1735093292811,0.26321103,699.25,697.81,0.28661096]
[1735093293010,0.26321103,699.24,697.81,0.28661096]
[1735093293311,0.263203,699.23,697.81,0.28661096]
[1735093293510,0.263203,699.22,697.81,0.28661096]
[1735093293711,0.263203,699.21,697.81,0.28661096]
[1735093294010,0.28596757,699.38,697.81,0.28661096]
[1735093294011,0.26319603,699.2,697.81,0.28661096]
[1735093294211,0.26319603,699.19,697.81,0.28661096]
[1735093294411,0.28596757,699.38,697.81,0.28661096]
[1735093294611,0.26320112,699.37,697.81,0.28661096]
[1735093295113,0.28597574,699.36,697.81,0.28661096]
[1735093295313,0.26320112,699.35,697.81,0.28661096]
[1735093295513,0.28598392,699.34,697.81,0.28661096]
[1735093295713,0.26320112,699.33,697.81,0.28661096]
[1735093296106,0.26320621,699.32,697.81,0.28661096]
[1735093296311,0.26320621,699.31,697.81,0.28661096]
[1735093296507,0.26320621,699.3,697.81,0.28661096]
[1735093296708,0.26320621,699.29,697.81,0.28661096]
[1735093296913,0.26320621,699.28,697.81,0.28661096]
[1735093297218,0.26320621,699.27,697.81,0.28661096]
[1735093297412,0.26320621,699.26,697.81,0.28661096]
[1735093297609,0.26320621,699.25,697.81,0.28661096]
[1735093297810,0.26320621,699.24,697.81,0.28661096]
[1735093298012,0.26320621,699.23,697.81,0.28661096]
[1735093298211,0.28598392,699.34,697.81,0.28661096]
[1735093298416,0.26318751,699.33,697.81,0.28661096]
[1735093298713,0.28598392,699.34,697.81,0.28661096]
[1735093298916,0.2631552,699.33,697.81,0.28661096]
[1735093301614,0.26313911,699.32,697.81,0.28661096]
[1735093301814,0.26313911,699.31,697.81,0.28661096]
[1735093302012,0.26313911,699.3,697.81,0.28661096]
[1735093302219,0.28598392,699.34,697.81,0.28661096]
[1735093302518,0.26312841,699.33,697.81,0.28661096]
[1735093304022,0.28598392,699.34,697.81,0.28661096]
[1735093304923,0.26310484,699.33,697.81,0.28661096]
[1735093305519,1.2843151,699.91,697.81,0.28661096]
[1735093305520,0.26310484,699.32,697.81,0.28661096]
[1735093305722,0.26310484,699.31,697.81,0.28661096]
[1735093305921,0.26310484,699.3,697.81,0.28661096]
[1735093306121,0.26310484,699.29,697.81,0.28661096]
[1735093306324,0.26310484,699.28,697.81,0.28661096]
[1735093306525,0.26310484,699.27,697.81,0.28661096]
[1735093306720,0.26310484,699.26,697.81,0.28661096]
[1735093306921,0.26310484,699.25,697.81,0.28661096]
[1735093307121,1.07026258,699.58,697.81,0.28661096]
[1735093307321,0.26309353,699.57,697.81,0.28661096]
[1735093307721,0.26309353,699.56,697.81,0.28661096]
[1735093307919,0.26309353,699.55,697.81,0.28661096]
[1735093308123,0.26309353,699.54,697.81,0.28661096]
[1735093308324,0.26309353,699.53,697.81,0.28661096]
[1735093308522,0.26309353,699.52,697.81,0.28661096]
[1735093308722,0.26309353,699.51,697.81,0.28661096]
[1735093308925,0.26309353,699.5,697.81,0.28661096]
[1735093309121,0.26309353,699.49,697.81,0.28661096]
[1735093309323,0.64609394,699.76,697.81,0.28661096]
[1735093309324,0.26309353,699.48,697.81,0.28661096]
[1735093309627,0.26309353,699.47,697.81,0.28661096]
[1735093309828,0.26306966,699.46,697.81,0.28661096]
[1735093310022,1.07026258,699.73,697.81,0.28661096]
[1735093310228,0.26307098,699.72,697.81,0.28661096]
[1735093310621,0.26307996,699.71,697.81,0.28661096]
[1735093310825,0.54891674,699.7,697.81,0.28661096]
[1735093311023,0.54892083,699.69,697.81,0.28661096]
[1735093311226,0.26307996,699.68,697.81,0.28661096]
[1735093312525,0.28584087,699.69,697.81,0.28661096]
[1735093312729,0.2630733,699.68,697.81,0.28661096]
[1735093318033,0.2630264,699.67,697.81,0.28661096]
[1735093318233,0.2630264,699.66,697.81,0.28661096]
[1735093318432,0.2630264,699.65,697.81,0.28661096]
[1735093318632,0.2630264,699.64,697.81,0.28661096]
[1735093318831,0.26302747,699.63,697.81,0.28661096]
[1735093319032,0.26302747,699.62,697.81,0.28661096]
[1735093319237,0.26302906,699.61,697.81,0.28661096]
[1735093319436,0.26302906,699.6,697.81,0.28661096]
[1735093319636,0.26302906,699.59,697.81,0.28661096]
[1735093319936,0.26302906,699.58,697.81,0.28661096]
[1735093320136,0.26302906,699.57,697.81,0.28661096]
[1735093320337,0.28584087,699.69,697.81,0.28661096]
[1735093320338,0.26302906,699.56,697.81,0.28661096]
[1735093320538,0.26302906,699.55,697.81,0.28661096]
[1735093320734,0.28584087,699.69,697.81,0.28661096]
[1735093320930,0.26302862,699.68,697.81,0.28661096]
[1735093322737,0.28584087,699.69,697.81,0.28661096]
[1735093322937,0.2630372,699.68,697.81,0.28661096]
[1735093324539,0.28584087,699.69,697.81,0.28661096]
[1735093331145,0.26297453,699.68,697.81,0.28661096]
[1735093331347,0.28584087,699.69,697.81,0.28661096]
[1735093333041,0.26296885,699.68,697.81,0.28661096]
[1735093333247,0.28584087,699.69,697.81,0.28661096]
[1735093333950,0.26302922,699.68,697.81,0.28661096]
[1735093339355,0.26304476,699.67,697.81,0.28661096]
[1735093339553,0.26304476,699.66,697.81,0.28661096]
[1735093339751,0.26304476,699.65,697.81,0.28661096]
[1735093339950,0.26304476,699.64,697.81,0.28661096]
[1735093340149,0.28584087,699.69,697.81,0.28661096]
[1735093340150,0.26304476,699.63,697.81,0.28661096]
[1735093340352,0.26304476,699.62,697.81,0.28661096]
[1735093340552,0.26304476,699.61,697.81,0.28661096]
[1735093340755,0.26304476,699.6,697.81,0.28661096]
[1735093340954,0.26304476,699.59,697.81,0.28661096]
[1735093341154,0.26304476,699.58,697.81,0.28661096]
[1735093341354,0.26304476,699.57,697.81,0.28661096]
[1735093341554,0.26304476,699.56,697.81,0.28661096]
[1735093341754,0.26304476,699.55,697.81,0.28661096]
[1735093341949,0.26304476,699.54,697.81,0.28661096]
[1735093342150,0.26304476,699.53,697.81,0.28661096]
[1735093342352,0.26304476,699.52,697.81,0.28661096]
[1735093342554,0.26304476,699.51,697.81,0.28661096]
[1735093342754,0.26304476,699.5,697.81,0.28661096]
[1735093342953,0.28584087,699.69,697.81,0.28661096]
[1735093343154,0.26305894,699.68,697.81,0.28661096]
[1735093344849,0.26305156,699.67,697.81,0.28661096]
[1735093345150,0.26305156,699.66,697.81,0.28661096]
[1735093345351,0.26305156,699.65,697.81,0.28661096]
[1735093345556,0.26305156,699.64,697.81,0.28661096]
[1735093345855,0.26305156,699.63,697.81,0.28661096]
[1735093346056,0.26305156,699.62,697.81,0.28661096]
[1735093346353,0.26305156,699.61,697.81,0.28661096]
[1735093346558,0.26305156,699.6,697.81,0.28661096]
[1735093346756,0.26305156,699.59,697.81,0.28661096]
[1735093347052,0.26305156,699.58,697.81,0.28661096]
[1735093347257,0.26305156,699.57,697.81,0.28661096]
[1735093347456,0.28584087,699.69,697.81,0.28661096]
[1735093347658,0.2630553,699.68,697.81,0.28661096]
[1735093349253,0.28584904,699.67,697.81,0.28661096]
[1735093349456,0.2630553,699.66,697.81,0.28661096]
[1735093351852,0.28585721,699.65,697.81,0.28661096]
[1735093352056,0.2630553,699.64,697.81,0.28661096]
[1735093353058,0.28585721,699.65,697.81,0.28661096]
[1735093353260,0.26311996,699.64,697.81,0.28661096]
[1735093353458,0.28586538,699.63,697.81,0.28661096]
[1735093353758,0.26311996,699.62,697.81,0.28661096]
[1735093354062,0.28587355,699.61,697.81,0.28661096]
[1735093354261,0.26311996,699.6,697.81,0.28661096]
[1735093355768,0.26309228,699.59,697.81,0.28661096]
[1735093355964,0.26309228,699.58,697.81,0.28661096]
[1735093356270,0.26309228,699.57,697.81,0.28661096]
[1735093356464,0.26309228,699.56,697.81,0.28661096]
[1735093356662,0.26309228,699.55,697.81,0.28661096]
[1735093356864,0.26309228,699.54,697.81,0.28661096]
[1735093357067,0.26309228,699.53,697.81,0.28661096]
[1735093357267,0.26309228,699.52,697.81,0.28661096]
[1735093357464,0.26309228,699.51,697.81,0.28661096]
[1735093357660,0.26309228,699.5,697.81,0.28661096]
[1735093357865,0.26309228,699.49,697.81,0.28661096]
[1735093358070,0.26309228,699.48,697.81,0.28661096]
[1735093358370,0.26309228,699.47,697.81,0.28661096]
[1735093358570,0.28587355,699.61,697.81,0.28661096]
[1735093358868,0.26309784,699.6,697.81,0.28661096]
[1735093359369,0.26309961,699.59,697.81,0.28661096]
[1735093359569,0.28587355,699.61,697.81,0.28661096]
[1735093359570,0.26309961,699.58,697.81,0.28661096]
[1735093359769,0.26309961,699.57,697.81,0.28661096]
[1735093359971,0.26309961,699.56,697.81,0.28661096]
[1735093360171,0.26309961,699.55,697.81,0.28661096]
[1735093360366,0.26309961,699.54,697.81,0.28661096]
[1735093360571,0.26309961,699.53,697.81,0.28661096]
[1735093360768,0.26309961,699.52,697.81,0.28661096]
[1735093360969,0.26309961,699.51,697.81,0.28661096]
[1735093361176,0.26309961,699.5,697.81,0.28661096]
[1735093361369,0.26309749,699.49,697.81,0.28661096]
[1735093361570,0.26309749,699.48,697.81,0.28661096]
[1735093361766,0.26309749,699.47,697.81,0.28661096]
[1735093361975,0.26309749,699.46,697.81,0.28661096]
[1735093362267,0.28587355,699.61,697.81,0.28661096]
[1735093362268,0.26309749,699.45,697.81,0.28661096]
[1735093362473,0.26309749,699.44,697.81,0.28661096]
[1735093362673,0.26309749,699.43,697.81,0.28661096]
[1735093362873,0.26309749,699.42,697.81,0.28661096]
[1735093363075,0.28587355,699.61,697.81,0.28661096]
[1735093363269,0.26307257,699.6,697.81,0.28661096]
[1735093364072,0.28587355,699.61,697.81,0.28661096]
[1735093364272,0.26305117,699.6,697.81,0.28661096]
[1735093366973,0.26306471,699.59,697.81,0.28661096]
[1735093367171,0.26306471,699.58,697.81,0.28661096]
[1735093367374,0.26306471,699.57,697.81,0.28661096]
[1735093367571,0.26306471,699.56,697.81,0.28661096]
[1735093367774,0.26305606,699.55,697.81,0.28661096]
[1735093367972,0.26305606,699.54,697.81,0.28661096]
[1735093368176,0.26305606,699.53,697.81,0.28661096]
[1735093368373,0.26305606,699.52,697.81,0.28661096]
[1735093368574,0.28587355,699.61,697.81,0.28661096]
[1735093368777,0.26306258,699.6,697.81,0.28661096]
[1735093369679,0.28587355,699.61,697.81,0.28661096]
[1735093369879,0.26305393,699.6,697.81,0.28661096]
[1735093370077,0.28587355,699.61,697.81,0.28661096]
[1735093370275,1.07026258,699.85,697.81,0.28661096]
[1735093370580,0.26300032,699.84,697.81,0.28661096]
[1735093370978,0.26300032,699.83,697.81,0.28661096]
[1735093371182,0.26300032,699.82,697.81,0.28661096]
[1735093371378,0.26300032,699.81,697.81,0.28661096]
[1735093371679,0.26300032,699.8,697.81,0.28661096]
[1735093371874,0.26300032,699.79,697.81,0.28661096]
[1735093372077,1.07026258,700.14,697.81,0.28661096]
[1735093372279,0.54865386,700.13,697.81,0.28661096]
[1735093372477,0.26299194,700.12,697.81,0.28661096]
[1735093372978,0.28566939,700.11,697.81,0.28661096]
[1735093373178,0.26299194,700.1,697.81,0.28661096]
[1735093373380,0.28567755,700.09,697.81,0.28661096]
[1735093373577,0.26299194,700.08,697.81,0.28661096]
[1735093373774,0.28568571,700.07,697.81,0.28661096]
[1735093373976,0.26299194,700.06,697.81,0.28661096]
[1735093374178,0.28569387,700.05,697.81,0.28661096]
[1735093374380,0.26299194,700.04,697.81,0.28661096]
[1735093374582,0.28570204,700.03,697.81,0.28661096]
[1735093374875,0.26299194,700.02,697.81,0.28661096]
[1735093375378,0.5487031,700.01,697.81,0.28661096]
[1735093375580,0.54870718,700.0,697.81,0.28661096]
[1735093375779,0.54871126,699.99,697.81,0.28661096]
[1735093375974,0.2629929,699.98,697.81,0.28661096]
[1735093376179,0.54872662,699.97,697.81,0.28661096]
[1735093376373,0.26300009,699.96,697.81,0.28661096]
[1735093379378,0.26299451,699.95,697.81,0.28661096]
[1735093379576,0.26299451,699.94,697.81,0.28661096]
[1735093379777,0.26299451,699.93,697.81,0.28661096]
[1735093379979,0.28572653,699.97,697.81,0.28661096]
[1735093379980,0.26299451,699.92,697.81,0.28661096]
[1735093380180,0.26299451,699.91,697.81,0.28661096]
[1735093380379,0.26299451,699.9,697.81,0.28661096]
[1735093380577,0.26299451,699.89,697.82,1.07060708]
[1735093380779,0.26299451,699.88,697.92,0.28656579]
[1735093380978,0.26299451,699.87,697.92,0.28656579]
[1735093381178,0.26299451,699.86,697.92,0.28656579]
[1735093381377,0.26299451,699.85,697.92,0.28656579]
[1735093381578,0.26299451,699.84,697.92,0.28656579]
[1735093381782,0.26299451,699.83,697.92,0.28656579]
[1735093381976,0.26299451,699.82,697.92,0.28656579]
[1735093382182,0.26299451,699.81,697.92,0.28656579]
[1735093382481,0.26299451,699.8,697.92,0.28656579]
[1735093382676,0.26299451,699.79,697.92,0.28656579]
[1735093382882,0.26299965,699.78,697.92,0.28656579]
[1735093383183,0.26299965,699.77,697.92,0.28656579]
[1735093383484,0.26299965,699.76,697.92,0.28656579]
[1735093383678,0.26299127,699.75,697.92,0.28656579]
[1735093383888,0.26299127,699.74,697.92,0.28656579]
[1735093384083,0.26299127,699.73,697.92,0.28656579]
[1735093384285,0.26299127,699.72,697.92,0.28656579]
[1735093384484,0.26299127,699.71,697.92,0.28656579]
[1735093384787,0.26299127,699.7,697.92,0.28656579]
[1735093384982,0.26299127,699.69,697.92,0.28656579]
[1735093385183,0.28572653,699.97,697.92,0.28656579]
[1735093385383,0.26295978,699.96,697.92,0.28656579]
[1735093385786,0.26295693,699.95,697.92,0.28656579]
[1735093385986,0.26295693,699.94,697.92,0.28656579]
[1735093386186,0.26295693,699.93,697.92,0.28656579]
[1735093386382,0.26295693,699.92,697.92,0.28656579]
[1735093386588,0.26295693,699.91,697.92,0.28656579]
[1735093386785,0.26295693,699.9,697.92,0.28656579]
[1735093387090,0.26295693,699.89,697.92,0.28656579]
[1735093387289,0.26295693,699.88,697.92,0.28656579]
[1735093387491,0.26295693,699.87,697.92,0.28656579]
[1735093387691,0.26295693,699.86,697.92,0.28656579]
[1735093387884,0.26295693,699.85,697.92,0.28656579]
[1735093388086,0.26295693,699.84,697.92,0.28656579]
[1735093388290,0.26295693,699.83,697.92,0.28656579]
[1735093388485,0.26296983,699.82,697.92,0.28656579]
[1735093388691,0.28572653,699.97,697.92,0.28656579]
[1735093388893,0.26297018,699.96,697.92,0.28656579]
[1735093391089,0.28572653,699.97,697.92,0.28656579]
[1735093391295,0.26296187,699.96,697.92,0.28656579]
[1735093396192,0.26296187,699.96,697.97,1.07060708]
[1735093396898,0.26297453,699.95,697.97,1.07060708]
[1735093397198,0.26297453,699.94,697.97,1.07060708]
[1735093397400,0.26297453,699.93,697.93,1.07060708]
[1735093397699,0.26297453,699.92,697.93,1.07060708]
[1735093397897,0.26297453,699.91,697.93,1.07060708]
[1735093398097,0.26297453,699.9,697.93,1.07060708]
[1735093398397,0.26297453,699.89,697.93,1.07060708]
[1735093398597,0.26297453,699.88,697.96,1.07060708]
[1735093398797,0.26297453,699.87,697.98,0.28654116]
[1735093398998,0.26297453,699.86,697.98,0.28654116]
[1735093399200,0.26297453,699.85,697.98,0.28654116]
[1735093399499,0.28572653,699.97,697.98,0.28654116]
[1735093399692,0.26297573,699.96,697.98,1.35714824]
[1735093400897,1.33323831,699.96,698.01,1.07060708]
[1735093401100,0.26297573,699.95,698.03,0.28652063]
[1735093402095,0.26297573,699.95,698.03,1.35712771]
[1735093402502,0.26296852,699.94,698.03,1.35712771]
[1735093402801,0.26296852,699.93,698.03,1.35712771]
[1735093403000,0.26296852,699.92,698.05,1.07060708]
[1735093403201,0.26296852,699.91,698.07,0.28650421]
[1735093403397,0.26296852,699.9,698.07,0.28650421]
[1735093403596,0.26296852,699.89,698.07,0.28650421]
[1735093403797,0.26296852,699.88,698.07,0.28650421]
[1735093404001,1.07026258,699.95,698.07,0.28650421]
[1735093404002,0.26296852,699.87,698.07,0.28650421]
[1735093404197,0.26296852,699.86,698.07,0.28650421]
[1735093404401,0.26296852,699.85,698.07,0.28650421]
[1735093404602,0.26296852,699.84,698.07,0.28650421]
[1735093404800,0.26296852,699.83,698.07,0.28650421]
[1735093405003,0.26296852,699.82,698.07,0.28650421]
[1735093405204,0.26296852,699.9,698.07,0.28650421]
[1735093405503,1.07026258,699.91,698.07,0.28650421]
[1735093405504,0.26296852,699.89,698.07,0.28650421]
[1735093405705,1.3332311,699.88,698.11,1.07060708]
[1735093406005,0.26296852,699.87,698.11,1.07060708]
[1735093406206,0.26296852,699.87,698.13,0.28647959]
[1735093406507,1.3332311,699.87,698.13,0.28647959]
[1735093406809,0.26296852,699.86,698.13,0.28647959]
[1735093407410,1.07026258,699.79,698.18,1.07060708]
[1735093407604,0.26296852,699.78,698.18,1.07060708]
[1735093407910,0.26296772,699.77,698.18,1.07060708]
[1735093408106,0.26296772,699.76,698.2,0.28645087]
[1735093408306,0.26296772,699.75,698.2,0.28645087]
[1735093408505,0.26296772,699.74,698.2,0.28645087]
[1735093408702,1.07026258,699.83,698.2,0.28645087]
[1735093408703,0.26296289,699.73,698.2,0.28645087]
[1735093409008,0.26296289,699.72,698.2,0.28645087]
[1735093409208,0.26296289,699.71,698.2,0.28645087]
[1735093409508,0.26296289,699.7,698.2,0.28645087]
[1735093409702,0.26296289,699.69,698.2,0.28645087]
[1735093409900,0.26296289,699.68,698.2,0.28645087]
[1735093410106,0.26296289,699.67,698.2,0.28645087]
[1735093410307,0.26296289,699.66,698.2,0.28645087]
[1735093410508,0.26296289,699.65,698.2,0.28645087]
[1735093410706,1.07026258,699.81,698.2,0.28645087]
[1735093410911,0.26297006,699.8,698.2,0.28645087]
[1735093411906,0.26297006,699.79,698.2,0.28645087]
[1735093412108,0.26297006,699.78,698.2,0.28645087]
[1735093412310,0.26297006,699.77,698.2,0.28645087]
[1735093412505,0.26297006,699.76,698.2,0.28645087]
[1735093412812,0.26297006,699.75,698.2,0.28645087]
[1735093413111,0.26297006,699.74,698.2,0.28645087]
[1735093413409,0.26297006,699.73,698.2,0.28645087]
[1735093413610,0.26296778,699.72,698.2,0.28645087]
[1735093413806,0.26296778,699.71,698.2,0.28645087]
[1735093414013,0.26296778,699.7,698.2,0.28645087]
[1735093414307,1.07026258,699.8,698.2,0.28645087]
[1735093414513,0.262992,699.79,698.2,0.28645087]
[1735093415514,0.28572653,699.97,698.2,0.28645087]
[1735093415713,0.26297558,699.96,698.2,0.28645087]
[1735093415916,0.28573469,699.95,698.2,0.28645087]
[1735093416117,0.26297558,699.94,698.2,0.28645087]
[1735093416309,0.26298935,699.93,698.2,0.28645087]
[1735093416510,0.26298935,699.92,698.2,0.28645087]
[1735093416712,0.26298935,699.91,698.2,0.28645087]
[1735093416914,0.26298935,699.9,698.2,0.28645087]
[1735093417113,0.26299087,699.89,698.2,0.28645087]
[1735093417412,0.26299087,699.88,698.2,0.28645087]
[1735093417615,0.26299087,699.87,698.2,0.28645087]
[1735093417813,0.26299087,699.86,698.2,0.28645087]
[1735093418019,0.26299087,699.85,698.2,0.28645087]
[1735093418217,0.26299087,699.84,698.2,0.28645087]
[1735093418419,0.28573469,699.95,698.2,0.28645087]
[1735093418420,0.26298572,699.83,698.2,0.28645087]
[1735093418614,0.26298572,699.82,698.2,0.28645087]
[1735093418817,0.26298572,699.81,698.2,0.28645087]
[1735093419014,0.26298572,699.8,698.2,0.28645087]
[1735093419219,0.28573469,699.95,698.2,0.28645087]
[1735093419418,0.26298993,699.94,698.2,0.28645087]
[1735093420419,0.28574286,699.93,698.2,0.28645087]
[1735093420720,0.26298993,699.92,698.2,0.28645087]
[1735093420920,0.28575102,699.91,698.2,0.28645087]
[1735093421220,0.26298993,699.9,698.2,0.28645087]
[1735093421919,0.28575919,699.89,698.2,0.28645087]
[1735093422115,0.26299321,699.88,698.2,0.28645087]
[1735093424820,0.26299548,699.87,698.2,0.28645087]
[1735093425023,1.07026258,699.8,698.2,0.28645087]
[1735093425217,0.26299548,699.79,698.2,0.28645087]
[1735093425616,0.26299637,699.78,698.2,0.28645087]
[1735093425822,0.26299637,699.77,698.2,0.28645087]
[1735093426017,0.28575919,699.89,698.2,0.28645087]
[1735093426018,0.26299637,699.76,698.2,0.28645087]
[1735093426222,0.26299637,699.75,698.2,0.28645087]
[1735093426417,0.26299637,699.74,698.2,0.28645087]
[1735093426620,0.26299637,699.73,698.2,0.28645087]
[1735093426818,0.26299637,699.72,698.2,0.28645087]
[1735093427024,0.26299637,699.71,698.2,0.28645087]
[1735093427224,0.26299637,699.7,698.2,0.28645087]
[1735093427522,1.07026258,699.78,698.2,0.28645087]
[1735093427523,0.26299637,699.69,698.2,0.28645087]
[1735093427822,0.26299637,699.68,698.2,0.28645087]
[1735093428018,0.26299637,699.67,698.2,0.28645087]
[1735093428216,0.26299637,699.66,698.2,0.28645087]
[1735093428416,0.26299637,699.65,698.2,0.28645087]
[1735093428721,0.26299637,699.64,698.2,0.28645087]
[1735093428916,1.07026258,699.73,698.2,0.28645087]
[1735093429120,0.26301323,699.72,698.2,0.28645087]
[1735093430024,0.26301323,699.71,698.2,0.28645087]
[1735093430217,0.26301323,699.7,698.2,0.28645087]
[1735093430420,0.26301323,699.69,698.2,0.28645087]
[1735093430622,0.28575919,699.89,698.2,0.28645087]
[1735093430623,0.26301323,699.68,698.2,0.28645087]
[1735093430821,1.07026258,699.86,698.2,0.28645087]
[1735093431020,0.26300559,699.85,698.2,0.28645087]
[1735093432127,0.26300559,699.84,698.2,0.28645087]
[1735093432326,0.26300559,699.83,698.2,0.28645087]
[1735093432627,0.26300559,699.82,698.2,0.28645087]
[1735093432924,0.26300559,699.81,698.2,0.28645087]
[1735093433119,0.26300559,699.8,698.2,0.28645087]
[1735093433321,0.26300559,699.79,698.2,0.28645087]
[1735093433519,0.26300559,699.78,698.2,0.28645087]
[1735093433724,0.28575919,699.89,698.2,0.28645087]
[1735093433725,0.26300559,699.77,698.2,0.28645087]
[1735093433924,0.26300559,699.76,698.2,0.28645087]
[1735093434126,0.26300559,699.75,698.2,0.28645087]
[1735093434326,0.26300559,699.74,698.2,0.28645087]
[1735093434522,0.26300559,699.73,698.2,0.28645087]
[1735093434727,0.28575919,699.89,698.2,0.28645087]
[1735093434928,0.26299531,699.88,698.2,0.28645087]
[1735093436031,0.26300409,699.87,698.2,0.28645087]
[1735093436330,0.26300409,699.86,698.2,0.28645087]
[1735093436530,0.28575919,699.89,698.2,0.28645087]
[1735093436531,0.26300409,699.85,698.2,0.28645087]
[1735093436730,0.26300409,699.84,698.2,0.28645087]
[1735093436928,0.26300409,699.83,698.2,0.28645087]
[1735093437231,0.26300409,699.82,698.2,0.28645087]
[1735093437433,0.26300409,699.81,698.2,0.28645087]
[1735093437626,0.26300409,699.8,698.2,0.28645087]
[1735093437826,0.26300409,699.79,698.2,0.28645087]
[1735093438029,0.26300409,699.78,698.2,0.28645087]
[1735093438227,0.28575919,699.89,698.2,0.28645087]
[1735093438427,0.26300459,699.88,698.2,0.28645087]
[1735093438629,0.28576735,699.87,698.2,0.28645087]
[1735093438831,0.26300459,699.86,698.2,0.28645087]
[1735093439031,0.28577552,699.85,698.2,0.28645087]
[1735093439232,0.26300459,699.84,698.2,0.28645087]
[1735093439429,0.28577552,699.85,698.2,0.28645087]
[1735093439635,0.26300567,699.84,698.2,0.28645087]
[1735093441136,0.26300594,699.83,698.2,0.28645087]
[1735093441336,0.26300594,699.82,698.2,0.28645087]
[1735093441638,0.28577552,699.85,698.2,0.28645087]
[1735093441639,0.26300594,699.81,698.2,0.28645087]
[1735093441833,0.26300594,699.8,698.2,0.28645087]
[1735093442037,0.28577552,699.85,698.2,0.28645087]
[1735093442038,0.26300594,699.79,698.2,0.28645087]
[1735093442240,0.26300594,699.78,698.2,0.28645087]
[1735093442540,0.26300594,699.77,698.2,0.28645087]
[1735093442743,0.26300594,699.76,698.2,0.28645087]
[1735093442938,0.28577552,699.85,698.2,0.28645087]
[1735093442939,0.26300594,699.75,698.2,0.28645087]
[1735093443142,0.26300594,699.74,698.2,0.28645087]
[1735093443442,0.28577552,699.85,698.2,0.28645087]
[1735093443443,0.26300594,699.73,698.2,0.28645087]
[1735093443644,0.26300594,699.72,698.2,0.28645087]
[1735093443943,0.26300594,699.71,698.2,0.28645087]
[1735093444140,0.26300651,699.7,698.2,0.28645087]
[1735093444338,0.26300651,699.69,698.2,0.28645087]
[1735093444644,0.28577552,699.85,698.2,0.28645087]
[1735093444839,0.26300847,699.84,698.2,0.28645087]
[1735093446942,1.07026258,699.78,698.2,0.28645087]
[1735093447144,0.26300847,699.77,698.2,0.28645087]
[1735093448942,1.33327105,699.77,698.2,0.28645087]
[1735093449246,0.26300727,699.76,698.2,0.28645087]
[1735093449846,1.33326985,699.76,698.2,0.28645087]
[1735093450046,0.26300727,699.75,698.2,0.28645087]
[1735093450942,1.07026258,699.72,698.2,0.28645087]
[1735093451141,0.26300727,699.71,698.2,0.28645087]
[1735093451747,1.33326985,699.71,698.2,0.28645087]
[1735093451948,0.26300727,699.7,698.2,0.28645087]
[1735093452250,0.26301736,699.69,698.2,0.28645087]
[1735093452544,0.26301736,699.68,698.2,0.28645087]
[1735093454151,0.26301736,699.67,698.2,0.28645087]
[1735093454351,0.26301736,699.66,698.2,0.28645087]
[1735093454551,0.26301736,699.65,698.2,0.28645087]
[1735093454852,0.26300612,699.64,698.2,0.28645087]
[1735093455053,0.26300612,699.63,698.2,0.28645087]
[1735093455245,0.26300612,699.62,698.2,0.28645087]
[1735093455446,1.07026258,699.77,698.2,0.28645087]
[1735093455653,0.26301091,699.76,698.2,0.28645087]